bitfinex-derivatives/quotes_BTCF0:USTF0_20251213
["timestamp","ask_amount","ask_price","bid_price","bid_amount"]
[1765604928481,0.08304165,90317.0,90316.0,0.63977]
[1765604929487,0.08304165,90317.0,90316.0,0.66238]
[1765604931477,0.08304165,90317.0,90316.0,0.69357]
[1765604932983,0.08304165,90317.0,90316.0,0.71618]
[1765604946197,0.0271354,90317.0,90316.0,0.71618]
[1765604946398,0.0001661,90326.0,90325.0,0.0562902]
[1765604947196,0.0566961,90326.0,90325.0,0.0562902]
[1765604947396,0.0566961,90326.0,90325.0,0.7474502]
[1765604947590,0.00044727,90326.0,90325.0,0.7474502]
[1765604947987,0.00144727,90326.0,90325.0,0.7474502]
[1765604952798,0.00144727,90326.0,90325.0,1.1082502]
[1765604958800,0.0283312,90326.0,90325.0,1.1082502]
[1765604980621,0.02788393,90326.0,90325.0,1.1082502]
[1765604981023,0.02688393,90326.0,90325.0,1.1082502]
[1765604983422,0.02788393,90326.0,90325.0,1.1082502]
[1765604984221,0.02688393,90326.0,90325.0,1.1082502]
[1765604985011,0.02788393,90326.0,90325.0,1.1082502]
[1765604989927,0.02688393,90326.0,90325.0,1.1082502]
[1765604990929,0.02788393,90326.0,90325.0,1.1082502]
[1765604993029,0.02688393,90326.0,90325.0,1.1082502]
[1765604997234,0.02788393,90326.0,90325.0,1.1082502]
[1765604999234,0.02688393,90326.0,90325.0,1.1082502]
[1765605002530,0.02788393,90326.0,90325.0,1.1082502]
[1765605004835,0.02789068,90326.0,90325.0,1.1082502]
[1765605007645,0.02789392,90326.0,90325.0,1.1082502]
[1765605008947,0.02689392,90326.0,90325.0,1.1082502]
[1765605009744,0.02789392,90326.0,90325.0,1.1082502]
[1765605022054,0.10115392,90326.0,90325.0,1.1082502]
[1765605024356,0.10115392,90326.0,90325.0,0.7474502]
[1765605024549,0.10115392,90326.0,90325.0,1.1082502]
[1765605027058,0.10115392,90326.0,90325.0,0.7474502]
[1765605027258,0.10115392,90326.0,90325.0,1.1082502]
[1765605041771,0.10115392,90326.0,90325.0,0.7474502]
[1765605042067,0.10115392,90326.0,90325.0,1.1082502]
[1765605047963,0.07410392,90326.0,90325.0,1.1082502]
[1765605050782,0.07510392,90326.0,90325.0,1.1082502]
[1765605051579,0.07510392,90326.0,90325.0,0.7474502]
[1765605051777,0.07510392,90326.0,90325.0,1.1082502]
[1765605051978,0.07410392,90326.0,90325.0,1.1082502]
[1765605052180,0.07510392,90326.0,90325.0,1.1082502]
[1765605055580,0.07509502,90326.0,90325.0,1.1082502]
[1765605060583,0.07509502,90326.0,90325.0,0.7474502]
[1765605060788,0.07509502,90326.0,90325.0,1.1082502]
[1765605062697,0.04635502,90326.0,90325.0,1.1082502]
[1765605063794,0.02888502,90326.0,90325.0,1.1082502]
[1765605064687,0.02788502,90326.0,90325.0,1.1082502]
[1765605070504,0.02788502,90326.0,90325.0,1.4690502]
[1765605073003,0.07268502,90326.0,90325.0,1.4690502]
[1765605074508,0.10111502,90326.0,90325.0,1.4690502]
[1765605085723,0.10111502,90326.0,90325.0,1.1082502]
[1765605091930,0.07268502,90326.0,90325.0,1.1082502]
[1765605092931,0.10078502,90326.0,90325.0,1.1082502]
[1765605100933,0.10078502,90326.0,90325.0,1.09718]
[1765605117053,0.10078502,90326.0,90325.0,0.73638]
[1765605117257,0.10078502,90326.0,90325.0,1.09718]
[1765605126257,0.02788502,90326.0,90325.0,1.09718]
[1765605129153,0.07440502,90326.0,90325.0,1.09718]
[1765605133670,0.10363502,90326.0,90325.0,1.09718]
[1765605135772,0.10363502,90326.0,90325.0,0.73638]
[1765605136071,0.10363502,90326.0,90325.0,1.09718]
[1765605141775,0.07440502,90326.0,90325.0,1.09718]
[1765605152894,0.10290502,90326.0,90325.0,1.09718]
[1765605154689,0.10237202,90326.0,90325.0,1.09718]
[1765605155598,0.10237202,90326.0,90325.0,0.73638]
[1765605155798,0.10237202,90326.0,90325.0,1.09718]
[1765605166405,0.10237202,90326.0,90325.0,0.73638]
[1765605166591,0.10237202,90326.0,90325.0,1.09718]
[1765605173113,0.10237202,90326.0,90325.0,0.73638]
[1765605173312,0.10237202,90326.0,90325.0,0.40602]
[1765605173507,0.10237202,90326.0,90325.0,0.04522]
[1765605173826,0.0866513,90316.0,90315.0,0.16712]
[1765605174008,0.11300332,90316.0,90315.0,0.79388]
[1765605174713,0.11300332,90316.0,90315.0,0.67198]
[1765605174913,0.11300332,90316.0,90315.0,0.6830514]
[1765605175111,0.11300332,90316.0,90315.0,0.6850514]
[1765605177311,0.11300332,90316.0,90315.0,0.6840514]
[1765605177516,0.11300332,90316.0,90315.0,0.6850514]
[1765605182521,0.10193202,90316.0,90315.0,0.6850514]
[1765605183120,0.10193202,90316.0,90315.0,0.0582914]
[1765605183320,0.10193202,90316.0,90315.0,0.7492514]
[1765605184922,0.02635202,90316.0,90315.0,0.7492514]
[1765605198336,0.07241202,90316.0,90315.0,0.7492514]
[1765605198737,0.04295202,90316.0,90315.0,0.7492514]
[1765605202532,0.04295202,90316.0,90315.0,1.1100514]
[1765605205839,0.07176202,90316.0,90315.0,1.1100514]
[1765605207438,0.09888202,90316.0,90315.0,1.1100514]
[1765605208041,0.04295202,90316.0,90315.0,1.1100514]
[1765605210843,0.02635202,90316.0,90315.0,1.1100514]
[1765605215541,0.10034202,90316.0,90315.0,1.1100514]
[1765605227156,0.1001199,90316.0,90315.0,1.1100514]
[1765605227562,0.1001199,90316.0,90315.0,0.7492514]
[1765605227862,0.1001199,90316.0,90315.0,1.1100514]
[1765605229661,0.1001199,90316.0,90315.0,0.7492514]
[1765605229963,0.1001199,90316.0,90315.0,1.1100514]
[1765605231661,0.07399,90316.0,90315.0,1.1100514]
[1765605231962,0.04687,90316.0,90315.0,1.1100514]
[1765605235068,0.04687,90316.0,90315.0,0.7492514]
[1765605235266,0.04687,90316.0,90315.0,1.1100514]
[1765605239266,0.07395391,90316.0,90315.0,1.1100514]
[1765605239766,0.10392391,90316.0,90315.0,1.09902]
[1765605239968,0.02708391,90316.0,90315.0,1.09902]
[1765605244972,0.07525,90326.0,90325.0,0.04522]
[1765605245271,0.10233559,90326.0,90325.0,0.73622]
[1765605246070,0.10333559,90326.0,90325.0,0.73622]
[1765605246368,0.10433559,90326.0,90325.0,0.73622]
[1765605247866,0.10333559,90326.0,90325.0,0.73622]
[1765605248060,0.10433559,90326.0,90325.0,0.73622]
[1765605248264,0.02808559,90326.0,90325.0,0.73622]
[1765605248676,0.02908559,90326.0,90325.0,0.73622]
[1765605249067,0.02808559,90326.0,90325.0,0.73622]
[1765605249365,0.02908559,90326.0,90325.0,0.73622]
[1765605254167,0.02850987,90326.0,90325.0,0.73622]
[1765605255179,0.02850987,90326.0,90325.0,1.09702]
[1765605257581,0.02750987,90326.0,90325.0,1.09702]
[1765605257880,0.02850987,90326.0,90325.0,1.09702]
[1765605261884,0.10375987,90326.0,90325.0,1.09702]
[1765605272094,0.07378987,90326.0,90325.0,1.09702]
[1765605293610,0.04582987,90326.0,90325.0,1.09702]
[1765605293908,0.02850987,90326.0,90325.0,1.09702]
[1765605311616,0.02838811,90326.0,90325.0,1.09702]
[1765605325736,0.02738811,90326.0,90325.0,1.09702]
[1765605325936,0.02838811,90326.0,90325.0,1.09702]
[1765605330843,0.02738811,90326.0,90325.0,1.09702]
[1765605331045,0.02838811,90326.0,90325.0,1.09702]
[1765605331644,0.02838811,90326.0,90325.0,0.73622]
[1765605331852,0.02838811,90326.0,90325.0,1.09702]
[1765605333347,0.02638811,90326.0,90325.0,1.09702]
[1765605335155,0.02738811,90326.0,90325.0,1.09702]
[1765605335855,0.02638811,90326.0,90325.0,1.09702]
[1765605342764,0.0001661,90335.0,90334.0,0.0562891]
[1765605342963,0.0001661,90335.0,90334.0,1.1079691]
[1765605343157,0.02715644,90335.0,90334.0,1.1079691]
[1765605343865,0.05685644,90335.0,90334.0,1.1079691]
[1765605344859,0.05785644,90335.0,90334.0,1.1079691]
[1765605345364,0.05885644,90335.0,90334.0,1.1079691]
[1765605348054,0.02915644,90335.0,90334.0,1.1079691]
[1765605351168,0.02815644,90335.0,90334.0,1.1079691]
[1765605351365,0.02915644,90335.0,90334.0,1.1079691]
[1765605353863,0.02815644,90335.0,90334.0,1.1079691]
[1765605354165,0.02715644,90335.0,90334.0,1.1079691]
[1765605361977,1e-07,90335.0,90334.0,1.17276213]
[1765605362276,0.01647,90352.0,90351.0,0.04522]
[1765605362469,0.04337545,90352.0,90351.0,1.09686]
[1765605363074,0.02690545,90352.0,90351.0,1.09686]
[1765605363873,0.02890545,90352.0,90351.0,1.09686]
[1765605367172,0.02790545,90352.0,90351.0,1.09686]
[1765605367378,0.02890545,90352.0,90351.0,1.09686]
[1765605367978,0.02790545,90352.0,90351.0,1.09686]
[1765605368180,0.02890545,90352.0,90351.0,1.09686]
[1765605368484,0.002,90352.0,90351.0,1.09686]
[1765605369283,0.002,90352.0,90351.0,1.15016]
[1765605369676,0.001,90352.0,90351.0,1.09686]
[1765605370183,0.0001661,90361.0,90360.0,0.04522]
[1765605370388,0.0001661,90361.0,90360.0,1.09682]
[1765605370879,0.02650501,90361.0,90360.0,1.09682]
[1765605371073,0.01647,90364.0,90363.0,0.0562855]
[1765605371975,0.01647,90364.0,90363.0,0.06740565]
[1765605372374,0.04463,90364.0,90363.0,0.06740565]
[1765605373284,0.04563,90364.0,90363.0,0.06740565]
[1765605373482,0.04663,90364.0,90363.0,0.06740565]
[1765605375584,0.04563,90364.0,90363.0,0.06740565]
[1765605375777,0.04763,90364.0,90363.0,0.06740565]
[1765605375974,0.04663,90364.0,90363.0,0.06740565]
[1765605376182,0.07739,90364.0,90363.0,0.06740565]
[1765605376384,0.01947,90364.0,90363.0,0.06740565]
[1765605376573,0.01647,90366.0,90365.0,0.04522]
[1765605377784,0.001,90366.0,90365.0,0.04522]
[1765605377981,0.01647,90370.0,90365.0,0.04522]
[1765605378185,0.00788138,90368.0,90367.0,0.04522]
[1765605379386,0.00888138,90368.0,90367.0,0.04522]
[1765605379990,0.00988138,90368.0,90367.0,0.04522]
[1765605380178,0.06780138,90368.0,90367.0,0.04522]
[1765605382189,0.06680138,90368.0,90367.0,0.04522]
[1765605382382,0.06880138,90368.0,90367.0,0.04522]
[1765605383099,0.09464814,90368.0,90367.0,0.04522]
[1765605388577,0.09264814,90368.0,90367.0,0.04522]
[1765605388789,0.09464814,90368.0,90367.0,0.04522]
[1765605388996,0.02884676,90368.0,90367.0,0.04522]
[1765605389183,0.001,90368.0,90367.0,0.04522]
[1765605389382,0.002,90368.0,90367.0,0.04522]
[1765605392186,0.001,90368.0,90367.0,0.04522]
[1765605392484,0.002,90368.0,90367.0,0.04522]
[1765605402398,0.002,90368.0,90367.0,0.73582]
[1765605403902,0.002,90368.0,90367.0,1.45742]
[1765605416199,0.02930169,90368.0,90367.0,1.45742]
[1765605421515,0.02930169,90368.0,90367.0,0.73582]
[1765605421716,0.02930169,90368.0,90367.0,1.45742]
[1765605427512,0.02930169,90368.0,90367.0,0.73582]
[1765605427713,0.02930169,90368.0,90367.0,1.45742]
[1765605427915,0.102852,90368.0,90367.0,1.45742]
[1765605436725,0.102852,90368.0,90367.0,1.09662]
[1765605439819,0.102852,90368.0,90367.0,1.45742]
[1765605441426,0.074362,90368.0,90367.0,1.45742]
[1765605445733,0.029322,90368.0,90367.0,1.45742]
[1765605446837,0.056712,90368.0,90367.0,1.45742]
[1765605450337,0.029322,90368.0,90367.0,1.45742]
[1765605450738,0.002,90368.0,90367.0,1.45742]
[1765605472453,0.002,90368.0,90367.0,0.73582]
[1765605472657,0.002,90368.0,90367.0,1.45742]
[1765605474549,0.002,90368.0,90367.0,0.73582]
[1765605474854,0.002,90368.0,90367.0,1.45742]
[1765605487460,0.03106,90368.0,90367.0,1.45742]
[1765605494470,0.05889,90368.0,90367.0,1.45742]
[1765605511482,0.05889,90368.0,90367.0,0.73582]
[1765605511679,0.05751299,90368.0,90367.0,1.45742]
[1765605513581,0.05751299,90368.0,90367.0,0.73582]
[1765605513782,0.05751299,90368.0,90367.0,1.45742]
[1765605516483,0.02968299,90368.0,90367.0,1.45742]
[1765605525192,0.05671299,90368.0,90367.0,1.45742]
[1765605526397,0.05671299,90368.0,90367.0,0.73582]
[1765605526691,0.05671299,90368.0,90367.0,1.45742]
[1765605527495,0.02968299,90368.0,90367.0,1.45742]
[1765605530095,0.00062299,90368.0,90367.0,1.45742]
[1765605531598,0.00062299,90368.0,90367.0,0.73582]
[1765605531894,0.00062299,90368.0,90367.0,1.45742]
[1765605538299,0.00062299,90368.0,90367.0,1.46805]
[1765605538695,0.00062299,90368.0,90367.0,1.45742]
[1765605545406,0.00062299,90368.0,90367.0,0.73582]
[1765605545602,0.00062299,90368.0,90367.0,1.45742]
[1765605554612,0.00062299,90368.0,90367.0,0.73582]
[1765605554810,0.00062299,90368.0,90367.0,1.45742]
[1765605555012,0.075966,90373.0,90372.0,0.0678044]
[1765605555213,0.075966,90373.0,90372.0,0.7582844]
[1765605556608,0.075966,90373.0,90372.0,1.4798844]
[1765605557016,0.075966,90373.0,90372.0,0.7582844]
[1765605557216,0.075966,90373.0,90372.0,1.4798844]
[1765605561620,0.075966,90373.0,90372.0,0.7582844]
[1765605561913,0.075966,90373.0,90372.0,1.4798844]
[1765605562810,0.10336527,90373.0,90372.0,1.4798844]
[1765605572825,0.075966,90373.0,90372.0,1.4798844]
[1765605575015,0.075966,90373.0,90372.0,0.7582844]
[1765605575222,0.075966,90373.0,90372.0,1.4798844]
[1765605579320,0.10331606,90373.0,90372.0,1.4798844]
[1765605580724,0.10331572,90373.0,90372.0,1.4798844]
[1765605592822,0.075966,90373.0,90372.0,1.4798844]
[1765605594434,0.075966,90373.0,90372.0,0.7582844]
[1765605594622,0.075966,90373.0,90372.0,1.4798844]
[1765605595538,0.075966,90373.0,90372.0,0.7582844]
[1765605595736,0.075966,90373.0,90372.0,1.4798844]
[1765605598242,0.076966,90373.0,90372.0,1.4798844]
[1765605601951,0.076966,90373.0,90372.0,0.7894044]
[1765605602140,0.10420639,90373.0,90372.0,0.66651338]
[1765605602346,0.0874054,90364.0,90363.0,0.01112015]
[1765605602546,0.07634,90363.0,90362.0,0.1219]
[1765605602746,0.07634,90363.0,90362.0,0.58312557]
[1765605602747,0.10358039,90363.0,90362.0,0.58312557]
[1765605603350,0.10358039,90363.0,90362.0,0.57198314]
[1765605603539,0.10358039,90363.0,90362.0,0.59962314]
[1765605605145,0.10358039,90363.0,90362.0,0.4934]
[1765605607038,0.10358039,90363.0,90362.0,0.52315]
[1765605607441,0.10558039,90363.0,90362.0,0.52315]
[1765605607640,0.10758039,90363.0,90362.0,0.52315]
[1765605608036,0.10558039,90363.0,90362.0,0.52315]
[1765605608251,0.10358039,90363.0,90362.0,0.52315]
[1765605609748,0.10558039,90363.0,90362.0,0.52315]
[1765605610148,0.10358039,90363.0,90362.0,0.52315]
[1765605613955,0.10335912,90363.0,90362.0,0.52315]
[1765605617557,0.10192084,90363.0,90362.0,0.52315]
[1765605649070,0.02724039,90363.0,90362.0,0.52315]
[1765605649476,0.02724039,90363.0,90362.0,0.53178]
[1765605653681,0.055916,90373.0,90372.0,0.05637]
[1765605653884,0.08326604,90373.0,90372.0,0.05637]
[1765605654084,0.08326604,90373.0,90372.0,0.10897554]
[1765605654689,0.08526604,90373.0,90372.0,0.10897554]
[1765605655575,0.08726604,90373.0,90372.0,0.05637]
[1765605656586,0.08726604,90373.0,90372.0,0.1080117]
[1765605657181,0.08726604,90373.0,90372.0,0.10847489]
[1765605658088,0.08726604,90373.0,90372.0,0.05637]
[1765605658991,0.08726604,90373.0,90372.0,0.10844283]
[1765605660287,0.08726604,90373.0,90372.0,0.10809548]
[1765605662485,0.03151604,90373.0,90372.0,0.10809548]
[1765605662682,0.03151604,90373.0,90372.0,0.05637]
[1765605663279,0.03151604,90373.0,90372.0,0.10931688]
[1765605663479,0.05999604,90373.0,90372.0,0.10931688]
[1765605664192,0.08821604,90373.0,90372.0,0.10922415]
[1765605664891,0.08821604,90373.0,90372.0,0.05637]
[1765605665091,0.08821604,90373.0,90372.0,0.10922415]
[1765605666194,0.08821604,90373.0,90372.0,0.05637]
[1765605666493,0.08821604,90373.0,90372.0,0.10880059]
[1765605666695,0.060866,90373.0,90372.0,0.10880059]
[1765605667080,0.08813763,90373.0,90372.0,0.10880059]
[1765605667494,0.060866,90373.0,90372.0,0.10880059]
[1765605667696,0.08813749,90373.0,90372.0,0.05637]
[1765605668480,0.03143749,90373.0,90372.0,0.05637]
[1765605668896,0.03143749,90373.0,90372.0,0.10972688]
[1765605669199,0.03143749,90373.0,90372.0,0.10961522]
[1765605669694,0.004166,90373.0,90372.0,0.10961522]
[1765605670798,0.004166,90373.0,90372.0,0.05637]
[1765605670999,0.004166,90373.0,90372.0,0.10814056]
[1765605672001,0.004166,90373.0,90372.0,0.05637]
[1765605672298,0.004166,90373.0,90372.0,0.10859344]
[1765605672998,0.004166,90373.0,90372.0,0.05637]
[1765605673198,0.03143381,90373.0,90372.0,0.05637]
[1765605674496,0.03143381,90373.0,90372.0,0.10859892]
[1765605675305,0.03143381,90373.0,90372.0,0.05637]
[1765605675504,0.03143381,90373.0,90372.0,0.10983135]
[1765605676294,0.03143381,90373.0,90372.0,0.10998915]
[1765605676706,0.03143381,90373.0,90372.0,0.05637]
[1765605677007,0.03143381,90373.0,90372.0,0.10888876]
[1765605677703,0.03143381,90373.0,90372.0,0.05637]
[1765605678106,0.03144313,90373.0,90372.0,0.05637]
[1765605678295,0.03144313,90373.0,90372.0,0.10827718]
[1765605679008,0.03144313,90373.0,90372.0,0.05637]
[1765605679206,0.03144313,90373.0,90372.0,0.10978393]
[1765605679798,0.03144313,90373.0,90372.0,0.47058393]
[1765605679998,0.03144313,90373.0,90372.0,0.41717]
[1765605681409,0.03144313,90373.0,90372.0,0.47026072]
[1765605681610,0.03144313,90373.0,90372.0,0.10946072]
[1765605681903,0.03144313,90373.0,90372.0,0.47026072]
[1765605682607,0.03144313,90373.0,90372.0,0.46924463]
[1765605682905,0.03144313,90373.0,90372.0,0.41717]
[1765605683107,0.03144313,90373.0,90372.0,0.46924463]
[1765605683712,0.03144313,90373.0,90372.0,0.41717]
[1765605683909,0.03144313,90373.0,90372.0,0.47007928]
[1765605685703,0.03144313,90373.0,90372.0,0.46961716]
[1765605686915,0.03144313,90373.0,90372.0,0.41717]
[1765605687299,0.03144313,90373.0,90372.0,0.46981279]
[1765605687906,0.03144313,90373.0,90372.0,0.41717]
[1765605689009,0.03144313,90373.0,90372.0,0.47045839]
[1765605690422,0.03144313,90373.0,90372.0,0.41717]
[1765605690622,0.03144313,90373.0,90372.0,0.47016197]
[1765605691323,0.03144313,90373.0,90372.0,0.41717]
[1765605691620,0.03144313,90373.0,90372.0,0.47016197]
[1765605692726,0.03144313,90373.0,90372.0,0.41717]
[1765605693424,0.03144313,90373.0,90372.0,0.46910398]
[1765605694218,0.03144313,90373.0,90372.0,0.41717]
[1765605694413,0.03144313,90373.0,90372.0,0.46957884]
[1765605695418,0.03144313,90373.0,90372.0,0.41717]
[1765605695922,0.03144313,90373.0,90372.0,0.47036819]
[1765605696436,0.03144313,90373.0,90372.0,0.41717]
[1765605697437,0.004166,90373.0,90372.0,0.41717]
[1765605697638,0.004166,90373.0,90372.0,0.47040412]
[1765605697836,0.004166,90373.0,90372.0,0.47063726]
[1765605698845,0.004166,90373.0,90372.0,0.46930438]
[1765605699640,0.004166,90373.0,90372.0,0.41717]
[1765605700142,0.004166,90373.0,90372.0,0.47030796]
[1765605700839,0.004166,90373.0,90372.0,0.46991172]
[1765605701040,0.004166,90373.0,90372.0,0.41717]
[1765605701239,0.07452,90392.0,90391.0,0.0683221]
[1765605701434,0.10170673,90392.0,90391.0,1.16135804]
[1765605702132,0.10170662,90392.0,90391.0,1.16135804]
[1765605702333,0.10170662,90392.0,90391.0,1.16133417]
[1765605702736,0.10170662,90392.0,90391.0,1.10862]
[1765605703041,0.10170662,90392.0,90391.0,1.10407417]
[1765605703637,0.10270662,90392.0,90391.0,1.05136]
[1765605703849,0.10470662,90392.0,90391.0,1.05136]
[1765605704235,0.10370662,90392.0,90391.0,1.05136]
[1765605704434,0.10170662,90392.0,90391.0,1.10361275]
[1765605705139,0.10170662,90392.0,90391.0,1.10432142]
[1765605705534,0.10170662,90392.0,90391.0,1.05136]
[1765605705935,0.10170662,90392.0,90391.0,1.10432142]
[1765605706538,0.10170662,90392.0,90391.0,1.10370486]
[1765605706939,0.10170662,90392.0,90391.0,1.05136]
[1765605707140,0.10162664,90392.0,90391.0,1.10499333]
[1765605708449,0.10162664,90392.0,90391.0,1.05136]
[1765605708648,0.10162664,90392.0,90391.0,1.10327663]
[1765605708847,0.10162664,90392.0,90391.0,1.05136]
[1765605709048,0.10162664,90392.0,90391.0,1.10327663]
[1765605709845,0.10162664,90392.0,90391.0,1.10464298]
[1765605710148,0.10162664,90392.0,90391.0,1.05436]
[1765605710335,0.10162664,90392.0,90391.0,1.10664298]
[1765605710533,0.10162664,90392.0,90391.0,1.10564298]
[1765605710734,0.10162664,90392.0,90391.0,1.10764298]
[1765605710942,0.10162664,90392.0,90391.0,1.05536]
[1765605711347,0.10162664,90392.0,90391.0,1.05136]
[1765605711552,0.10162664,90392.0,90391.0,1.10674007]
[1765605712854,0.10162664,90392.0,90391.0,1.10474007]
[1765605713045,0.10162664,90392.0,90391.0,0.74794007]
[1765605713251,0.10162664,90392.0,90391.0,0.75182]
[1765605713553,0.10162664,90392.0,90391.0,0.74982]
[1765605713751,0.10162664,90392.0,90391.0,0.74782]
[1765605713954,0.10162664,90392.0,90391.0,0.79988799]
[1765605714548,0.10162664,90392.0,90391.0,0.74982]
[1765605714747,0.10162664,90392.0,90391.0,0.80530685]
[1765605716159,0.10162664,90392.0,90391.0,0.80330685]
[1765605716354,0.10162664,90392.0,90391.0,0.80007555]
[1765605716858,0.10162664,90392.0,90391.0,0.80207555]
[1765605717355,0.10162664,90392.0,90391.0,0.80007555]
[1765605717556,0.10162664,90392.0,90391.0,0.74782]
[1765605717754,0.10162664,90392.0,90391.0,0.80063887]
[1765605718054,0.10162664,90392.0,90391.0,0.80263887]
[1765605718252,0.02718662,90392.0,90391.0,0.80463887]
[1765605718446,0.02718662,90392.0,90391.0,0.75182]
[1765605718651,0.02718662,90392.0,90391.0,0.80388662]
[1765605719059,0.05641662,90392.0,90391.0,0.80388662]
[1765605719359,0.08420662,90392.0,90391.0,0.80388662]
[1765605719556,0.08420662,90392.0,90391.0,0.80200371]
[1765605719852,0.08420662,90392.0,90391.0,0.80000371]
[1765605720241,0.08420662,90392.0,90391.0,0.80200371]
[1765605720444,0.08420662,90392.0,90391.0,0.74982]
[1765605720642,0.08520662,90392.0,90391.0,0.79961217]
[1765605720843,0.10396662,90392.0,90391.0,0.79961217]
[1765605721659,0.10396662,90392.0,90391.0,0.74782]
[1765605722759,0.10496662,90392.0,90391.0,0.80131233]
[1765605723560,0.10496662,90392.0,90391.0,0.74782]
[1765605723766,0.10496662,90392.0,90391.0,0.7994551]
[1765605723956,0.10496662,90392.0,90391.0,0.80086299]
[1765605725054,0.10496662,90392.0,90391.0,0.74782]
[1765605725364,0.10496662,90392.0,90391.0,0.80082755]
[1765605726456,0.10496662,90392.0,90391.0,0.79995953]
[1765605727265,0.09696662,90392.0,90391.0,0.79995953]
[1765605727657,0.09696662,90392.0,90391.0,0.74782]
[1765605727862,0.07778,90392.0,90391.0,0.74782]
[1765605728666,0.07778,90392.0,90391.0,0.80012056]
[1765605728667,0.07578,90392.0,90391.0,0.80012056]
[1765605728868,0.07778,90392.0,90391.0,1.16092056]
[1765605729074,0.07778,90392.0,90391.0,1.16022049]
[1765605729667,0.07778,90392.0,90391.0,1.10862]
[1765605729868,0.07778,90392.0,90391.0,1.16173846]
[1765605730267,0.07578,90392.0,90391.0,1.16173846]
[1765605730463,0.07678,90392.0,90391.0,1.16173846]
[1765605730664,0.07778,90392.0,90391.0,1.16173846]
[1765605731056,0.07778,90392.0,90391.0,1.16099353]
[1765605731261,0.07778,90392.0,90391.0,1.10862]
[1765605731462,0.07778,90392.0,90391.0,1.16099353]
[1765605732170,0.07778,90392.0,90391.0,1.10862]
[1765605732669,0.07778,90392.0,90391.0,1.16102493]
[1765605733572,0.07678,90392.0,90391.0,1.16102493]
[1765605733771,0.07778,90392.0,90391.0,1.16151931]
[1765605734471,0.07778,90392.0,90391.0,0.74782]
[1765605734862,0.07778,90392.0,90391.0,0.80071931]
[1765605735057,0.07578,90392.0,90391.0,0.80071931]
[1765605735262,0.07778,90392.0,90391.0,0.80071931]
[1765605735462,0.07778,90392.0,90391.0,0.79975431]
[1765605735771,0.07278,90392.0,90391.0,0.79975456]
[1765605735967,0.07178,90392.0,90391.0,0.79975456]
[1765605736173,0.07378,90392.0,90391.0,0.79975456]
[1765605736670,0.07378,90392.0,90391.0,0.80018838]
[1765605736971,0.07378,90392.0,90391.0,0.74782]
[1765605737175,0.07378,90392.0,90391.0,0.80124486]
[1765605737676,0.07178,90392.0,90391.0,0.80124486]
[1765605738176,0.07078,90392.0,90391.0,0.80124486]
[1765605738368,0.07078,90392.0,90391.0,0.8000621]
[1765605739277,0.09793038,90392.0,90391.0,0.8000621]
[1765605740981,0.09793038,90392.0,90391.0,0.79969411]
[1765605741676,0.09793038,90392.0,90391.0,0.74782]
[1765605741877,0.09793038,90392.0,90391.0,0.79969411]
[1765605742071,0.09793038,90392.0,90391.0,0.80094401]
[1765605743283,0.09793038,90392.0,90391.0,0.79961963]
[1765605744383,0.09793038,90392.0,90391.0,0.74782]
[1765605744585,0.09793038,90392.0,90391.0,0.80061468]
[1765605745587,0.09793038,90392.0,90391.0,0.80154734]
[1765605746476,0.09793038,90392.0,90391.0,0.74882]
[1765605746682,0.09793038,90392.0,90391.0,0.80049529]
[1765605746987,0.09793038,90392.0,90391.0,0.74882]
[1765605747188,0.09793038,90392.0,90391.0,0.80049529]
[1765605747487,0.09793038,90392.0,90391.0,0.79949529]
[1765605747786,0.09793038,90392.0,90391.0,0.79961584]
[1765605748081,0.09793038,90392.0,90391.0,0.80061584]
[1765605749388,0.09793038,90392.0,90391.0,0.80041358]
[1765605750690,0.09793038,90392.0,90391.0,0.74882]
[1765605751083,0.09793038,90392.0,90391.0,0.74782]
[1765605751607,0.02715038,90392.0,90391.0,0.80007937]
[1765605751782,0.000166,90401.0,90400.0,0.030641]
[1765605751982,0.000166,90401.0,90400.0,0.44339654]
[1765605753388,0.000166,90401.0,90400.0,0.391441]
[1765605753777,0.000166,90401.0,90400.0,0.44527281]
[1765605753976,0.000166,90401.0,90400.0,0.44727281]
[1765605754178,0.000166,90401.0,90400.0,0.395441]
[1765605754481,0.000166,90401.0,90400.0,0.44727281]
[1765605755278,0.000166,90401.0,90400.0,0.395441]
[1765605755477,0.000166,90401.0,90400.0,0.44803976]
[1765605756580,0.000166,90401.0,90400.0,0.395441]
[1765605756879,0.000166,90401.0,90400.0,0.44834]
[1765605758591,0.000166,90401.0,90400.0,0.44698624]
[1765605758993,0.000166,90401.0,90400.0,0.395441]
[1765605759190,0.000166,90401.0,90400.0,0.44698624]
[1765605759785,0.000166,90401.0,90400.0,0.447101]
[1765605761285,0.000166,90401.0,90400.0,0.395441]
[1765605762194,0.000166,90401.0,90400.0,0.44900754]
[1765605762782,0.000166,90401.0,90400.0,0.395441]
[1765605763988,0.0270804,90401.0,90400.0,0.395441]
[1765605764698,0.0270804,90401.0,90400.0,0.034641]
[1765605764893,0.0270804,90401.0,90400.0,0.395441]
[1765605765094,0.0559504,90401.0,90400.0,0.395441]
[1765605766682,0.0270804,90401.0,90400.0,0.395441]
[1765605771391,0.0559504,90401.0,90400.0,0.395441]
[1765605772899,0.0270804,90401.0,90400.0,0.395441]
[1765605778386,0.0270804,90401.0,90400.0,0.034641]
[1765605778594,0.0270804,90401.0,90400.0,0.395441]
[1765605779790,0.0552004,90401.0,90400.0,0.395441]
[1765605783407,0.0830804,90401.0,90400.0,0.395441]
[1765605784105,0.50357915,90401.0,90400.0,0.004]
[1765605784297,0.4438804,90401.0,90400.0,0.004]
[1765605784603,0.0670631,90383.0,90368.0,0.3608]
[1765605784794,0.4547775,90383.0,90368.0,0.67732]
[1765605785194,0.4547775,90383.0,90368.0,0.6883849]
[1765605785594,0.4547775,90383.0,90368.0,0.3718649]
[1765605786404,0.4557775,90383.0,90368.0,0.3718649]
[1765605786811,0.4547775,90383.0,90368.0,0.3718649]
[1765605787103,0.4557775,90383.0,90368.0,0.3718649]
[1765605788499,0.4567775,90383.0,90368.0,0.3718649]
[1765605791112,0.4557775,90383.0,90368.0,0.3718649]
[1765605791307,0.4567775,90383.0,90368.0,0.3718649]
[1765605791713,0.4557775,90383.0,90368.0,0.3718649]
[1765605793018,0.4547775,90383.0,90370.0,0.0110646]
[1765605793210,0.4547775,90383.0,90382.0,0.009956]
[1765605793915,0.4557775,90383.0,90382.0,0.009956]
[1765605794613,0.4547775,90383.0,90382.0,0.009956]
[1765605795303,0.4547775,90383.0,90382.0,0.019746]